bitfinex/quotes_ETHUSD_20250210
["timestamp","ask_amount","ask_price","bid_price","bid_amount"]
[1739209387001,3.74019,2673.7,2673.2,4.52897]
[1739209387342,3.7707,2674.1,2673.9,3.73972]
[1739209387343,0.7707,2674.1,2673.9,3.73972]
[1739209387518,0.7707,2674.1,2673.7,3.74002]
[1739209387851,0.7707,2674.1,2673.5,6.59857014]
[1739209387852,3.73973,2674.0,2673.5,6.59857014]
[1739209389213,3.0,2674.0,2673.5,10.33887014]
[1739209389843,3.0,2674.0,2673.5,6.59856014]
[1739209390531,3.0,2674.0,2673.5,10.33889014]
[1739209391039,3.0,2674.0,2673.5,6.59856014]
[1739209391236,6.73976,2674.0,2673.5,6.59856014]
[1739209391439,6.73976,2674.0,2673.5,3.7403]
[1739209392441,3.0,2674.0,2673.5,3.7403]
[1739209392646,3.73987,2673.9,2673.5,3.7403]
[1739209393215,6.73972,2674.0,2673.5,3.7403]
[1739209393750,6.73972,2674.0,2673.5,7.48063]
[1739209393948,4.51029,2674.1,2673.6,3.7402]
[1739209394152,3.0,2674.0,2673.6,3.7402]
[1739209394549,0.7707,2674.1,2673.7,3.74006]
[1739209394850,3.0,2674.0,2673.7,3.74006]
[1739209395346,3.0,2674.0,2673.5,3.7403]
[1739209395546,3.0,2674.0,2673.6,3.74023]
[1739209396350,3.7707,2674.1,2673.4,3.74048]
[1739209396655,3.73971,2674.0,2673.2,0.7882]
[1739209396950,3.73992,2673.9,2673.4,3.74053]
[1739209397849,3.73971,2674.0,2673.5,3.74033]
[1739209398557,3.73971,2674.0,2673.6,0.07621951]
[1739209399921,0.7707,2674.1,2673.6,0.07621951]
[1739209400157,3.74001,2673.8,2672.8,5.39]
[1739209400369,6.73944,2674.2,2672.9,0.83109512]
[1739209400370,3.74064,2673.4,2672.9,0.83109512]
[1739209400568,3.74027,2673.6,2672.9,0.83109512]
[1739209400768,0.7536,2673.7,2672.9,0.83109512]
[1739209400948,3.74062,2673.4,2672.9,0.83109512]
[1739209401146,3.74042,2673.5,2672.9,0.83109512]
[1739209401351,3.74069,2673.3,2672.9,0.83109512]
[1739209401732,3.7409,2673.2,2672.9,0.83109512]
[1739209402474,3.74111,2673.0,2672.9,0.07699512]
[1739209402865,3.74111,2673.0,2672.6,0.7541]
[1739209403067,4.49456,2673.2,2672.9,0.07710221]
[1739209403359,4.49456,2673.2,2673.0,0.07702092]
[1739209403674,4.49456,2673.2,2672.6,8.23726]
[1739209403874,0.7536,2673.2,2673.1,0.07689978]
[1739209404041,0.7536,2673.2,2672.7,3.74143]
[1739209404242,0.7536,2673.2,2673.1,0.07691224]
[1739209404442,3.74051,2673.5,2672.8,3.74127]
[1739209404443,6.74064,2673.4,2672.8,3.74127]
[1739209404656,6.74064,2673.4,2673.1,0.07691224]
[1739209404878,6.74064,2673.4,2672.8,3.74128]
[1739209405065,10.48132,2673.4,2673.2,0.07679111]
[1739209405375,10.48132,2673.4,2672.8,3.74128]
[1739209405376,3.74069,2673.3,2672.8,3.74128]
[1739209405577,10.48132,2673.4,2672.8,3.74128]
[1739209405739,3.74077,2673.3,2672.7,7.48298]
[1739209405940,3.74077,2673.3,2672.8,3.74138]
[1739209406254,10.48131,2673.4,2672.8,3.74138]
[1739209406456,6.74064,2673.4,2672.8,3.74138]
[1739209406766,0.7536,2673.5,2672.7,3.74153]
[1739209406962,3.7536,2673.5,2673.0,3.741]
[1739209407275,6.74042,2673.5,2673.0,3.741]
[1739209407574,3.74037,2673.6,2673.1,4.49506]
[1739209407775,7.48077,2673.6,2673.1,4.49506]
[1739209407981,7.48072,2673.6,2673.1,4.49506]
[1739209408177,3.74035,2673.6,2673.1,4.49506]
[1739209409066,10.48021,2673.8,2673.1,4.49498]
[1739209409254,10.48021,2673.8,2673.2,3.74081]
[1739209409255,3.74015,2673.7,2673.2,3.74081]
[1739209409582,7.48019,2673.8,2673.2,3.74081]
[1739209410179,3.74009,2673.8,2673.2,3.74081]
[1739209410347,3.74016,2673.7,2673.2,3.74081]
[1739209410757,3.74009,2673.8,2673.2,3.74081]
[1739209410961,3.73985,2673.9,2673.4,3.74045]
[1739209411142,6.73985,2673.9,2673.4,3.74045]
[1739209411373,3.74,2673.8,2673.2,3.74069]
[1739209411774,3.74,2673.8,2673.3,3.74061]
[1739209412475,3.7402,2673.7,2673.2,3.74069]
[1739209412778,3.7403,2673.6,2673.1,0.7541]
[1739209412944,3.74054,2673.5,2673.0,3.74104]
[1739209413149,3.7403,2673.6,2673.1,3.74096]
[1739209413352,3.7536,2674.0,2673.3,3.74069]
[1739209413353,7.49338,2674.0,2673.3,3.74069]
[1739209413550,3.74,2673.8,2673.4,0.83071614]
[1739209414266,3.73985,2673.9,2673.4,0.83071614]
[1739209414458,4.49337,2674.0,2673.4,0.07661614]
[1739209414459,3.74035,2673.6,2673.4,0.07661614]
[1739209414881,7.48072,2673.6,2673.1,3.74095]
[1739209415182,3.74035,2673.6,2673.1,3.74095]
[1739209415382,3.74035,2673.6,2673.2,0.07685836]
[1739209415988,7.48073,2673.6,2673.2,0.07685836]
[1739209416370,3.7406,2673.4,2673.2,0.07685836]
[1739209416584,3.7406,2673.4,2672.9,7.35353014]
[1739209416790,3.74032,2673.6,2673.0,3.81820062]
[1739209416973,3.74044,2673.5,2673.0,3.81820062]
[1739209417173,3.74069,2673.3,2673.0,0.07710062]
[1739209418256,4.49412,2673.5,2673.0,0.07710062]
[1739209418586,3.7406,2673.4,2673.0,0.07710062]
[1739209419591,3.74063,2673.4,2673.0,0.07710062]
[1739209420286,4.49412,2673.5,2673.0,0.07710062]
[1739209420487,3.74055,2673.4,2673.0,3.81820062]
[1739209421386,3.74055,2673.4,2673.0,0.07710062]
[1739209421587,3.74037,2673.6,2673.1,3.74096]
[1739209421789,3.74042,2673.5,2673.2,0.07685836]
[1739209422995,3.74042,2673.5,2673.0,3.7411]
[1739209423295,3.74042,2673.5,2673.1,0.07701434]
[1739209423493,3.74053,2673.5,2673.1,0.07701434]
[1739209423677,3.74062,2673.4,2673.1,0.07701434]
[1739209423991,3.74062,2673.4,2673.2,0.07689322]
[1739209424193,7.48129,2673.4,2672.9,4.49524]
[1739209424492,3.74062,2673.4,2673.0,0.07713548]
[1739209425173,3.74036,2673.6,2673.0,0.07713548]
[1739209425494,3.0,2673.7,2673.1,3.74088]
[1739209425795,3.74051,2673.5,2673.2,0.07689322]
[1739209425991,3.74069,2673.3,2673.2,0.07689322]
[1739209426197,3.74069,2673.3,2672.9,4.49535]
[1739209426408,3.74069,2673.3,2673.0,0.07713548]
[1739209426557,3.74039,2673.6,2673.0,0.07713548]
[1739209426763,3.74049,2673.5,2673.0,0.07713548]
[1739209426964,3.74063,2673.4,2673.0,0.07713548]
[1739209427296,3.74042,2673.5,2673.0,3.81816548]
[1739209427482,0.7536,2673.8,2673.0,0.07713548]
[1739209427683,3.73997,2673.9,2673.4,0.8096]
[1739209427887,3.7401,2673.8,2673.4,0.8096]
[1739209428088,3.0,2673.7,2673.5,0.07652989]
[1739209429297,3.74027,2673.6,2673.5,0.07652989]
[1739209429879,3.74027,2673.6,2673.1,0.8096]
[1739209430103,3.74027,2673.6,2673.5,0.07652989]
[1739209430407,3.74044,2673.5,2673.1,4.5505]
[1739209431503,3.74027,2673.6,2673.1,4.5505]
[1739209431808,3.74045,2673.5,2673.1,4.5505]
[1739209433805,3.74045,2673.5,2673.1,0.8096]
[1739209434302,3.74064,2673.4,2672.9,0.8097]
[1739209434509,3.74063,2673.4,2672.9,4.55093]
[1739209435017,3.74056,2673.4,2672.9,4.55093]
[1739209436295,3.74056,2673.4,2672.9,4.55087]
[1739209437214,7.48119,2673.4,2672.9,4.55087]
[1739209437387,3.74056,2673.4,2672.9,4.55087]
[1739209438021,3.74056,2673.4,2672.9,8.29204]
[1739209438350,3.74056,2673.4,2672.9,0.8097]
[1739209438552,3.74077,2673.3,2672.9,0.8097]
[1739209438831,3.74095,2673.2,2672.9,0.8097]
[1739209438987,7.48186,2673.2,2672.9,0.8097]
[1739209439323,3.74091,2673.2,2672.9,0.8097]
[1739209440300,3.74118,2673.0,2672.7,0.8097]
[1739209440483,3.74118,2673.0,2672.5,0.7538]
[1739209440688,3.74149,2672.8,2672.5,0.7538]
[1739209440941,3.74147,2672.8,2672.5,0.7538]
[1739209441120,3.74133,2672.9,2672.5,0.7538]
[1739209441290,3.0,2673.1,2672.5,0.7538]
[1739209441491,6.74104,2673.1,2672.5,4.49549]
[1739209441720,3.0,2673.1,2672.5,0.7538]
[1739209442024,6.74098,2673.1,2672.6,3.74163]
[1739209442326,9.08941,2674.3,2672.9,2.85826014]
[1739209442327,3.74026,2673.7,2672.9,2.85826014]
[1739209442510,3.74034,2673.6,2673.1,4.49472]
[1739209443088,3.74044,2673.5,2673.1,4.49472]
[1739209443292,3.74062,2673.4,2673.1,0.7538]
[1739209443509,3.74034,2673.6,2673.2,0.07403476]
[1739209444325,4.50992,2674.0,2673.3,3.74065]
[1739209444522,3.73982,2674.0,2673.5,6.59866014]
[1739209444902,3.73988,2673.9,2673.6,0.07349056]
[1739209445695,3.73988,2673.9,2673.4,0.7538]
[1739209445924,3.73988,2673.9,2673.7,0.07336948]
[1739209446135,3.73988,2673.9,2673.4,0.7538]
[1739209446309,3.73988,2673.9,2673.8,0.07324841]
[1739209446932,3.7701,2674.3,2673.8,0.07324841]
[1739209447110,0.7701,2674.5,2674.1,3.73948]
[1739209447312,3.73895,2674.6,2674.1,3.73948]
[1739209447513,3.73895,2674.6,2674.2,0.07276421]
[1739209448101,3.73901,2674.5,2674.2,0.07276421]
[1739209448302,3.73901,2674.5,2673.9,8.23331]
[1739209448533,3.73895,2674.6,2674.3,0.07264319]
[1739209448732,3.73895,2674.6,2674.0,3.73959]
[1739209448935,3.73867,2674.8,2674.4,0.07252217]
[1739209449237,3.0,2674.9,2674.5,0.07204754]
[1739209449397,3.73835,2675.0,2674.5,0.07204754]
[1739209449599,3.73835,2675.0,2674.5,3.81095754]
[1739209449799,3.7378,2675.4,2674.7,2.85826014]
[1739209450007,0.0075,2676.0,2674.5,0.07204754]
[1739209450008,0.7701,2675.7,2675.4,3.73774]
[1739209450228,0.7701,2676.5,2676.0,3.73687]
[1739209450501,0.7701,2676.5,2676.1,3.73674]
[1739209450711,0.7701,2676.5,2676.1,0.07003547]
[1739209450938,0.7701,2676.8,2676.2,3.73651]
[1739209451155,3.73631,2676.5,2676.1,0.82383547]
[1739209451353,3.73631,2676.5,2676.3,0.06960466]
[1739209451565,3.7365,2676.3,2676.2,0.06972551]
[1739209451854,3.7365,2676.3,2675.7,0.7538]
[1739209452731,3.73664,2676.2,2675.7,0.7538]
[1739209453033,3.7365,2676.3,2675.7,0.7538]
[1739209453233,7.47312,2676.3,2675.7,0.7538]
[1739209453533,3.7365,2676.3,2675.7,0.7538]
[1739209453738,3.7365,2676.3,2675.7,4.49113]
[1739209453954,3.73628,2676.5,2675.9,2.85826014]
[1739209454140,3.73628,2676.5,2675.9,6.59531014]
[1739209455113,3.73613,2676.6,2676.2,3.68726014]
[1739209455351,3.73601,2676.7,2676.2,3.68726014]
[1739209456145,3.73601,2676.7,2676.2,7.42389014]
[1739209456341,3.73601,2676.7,2676.2,3.68726014]
[1739209456542,3.0,2676.8,2676.3,3.7364]
[1739209456845,3.0,2676.8,2676.2,3.68726014]
[1739209456846,6.73582,2676.8,2676.2,7.42387014]
[1739209458126,3.73616,2676.6,2676.2,3.68726014]
[1739209458335,3.73642,2676.4,2676.2,3.68726014]
[1739209458652,3.73642,2676.4,2676.3,0.06937092]
[1739209459253,3.73642,2676.4,2676.3,0.06933364]
[1739209459745,3.73642,2676.4,2676.2,0.829]
[1739209459947,3.73642,2676.4,2676.3,0.06933364]
[1739209460124,3.73589,2676.8,2676.3,0.06933364]
[1739209460328,7.47182,2676.8,2676.2,3.68726014]
[1739209460542,3.73595,2676.7,2676.4,0.0692128]
[1739209460742,3.73595,2676.7,2676.3,0.06933364]
[1739209461049,3.73595,2676.7,2676.2,3.68726014]
[1739209461236,3.73589,2676.8,2676.4,0.0692128]
[1739209461547,3.7361,2676.6,2676.2,3.68726014]
[1739209461748,3.73638,2676.4,2676.2,3.68726014]
[1739209462451,3.73626,2676.5,2676.2,3.68726014]
[1739209463019,3.7361,2676.6,2676.2,3.68726014]
[1739209463436,3.73622,2676.5,2676.2,3.68726014]
[1739209464116,3.7361,2676.6,2676.2,3.68726014]
[1739209464552,3.73623,2676.5,2676.2,3.68726014]
[1739209464753,3.7364,2676.4,2676.2,3.68726014]
[1739209465646,0.7843,2677.4,2676.3,0.81776305]
[1739209465852,3.73569,2676.9,2676.5,2.85826014]
[1739209466055,3.73514,2677.3,2676.6,0.03735863]
[1739209466236,3.73514,2677.3,2676.8,2.85826014]
[1739209466624,3.73514,2677.3,2676.8,6.59405014]
[1739209466861,3.0,2677.2,2676.8,2.85826014]
[1739209468159,3.73566,2676.9,2676.7,0.7804]
[1739209469167,3.73555,2677.0,2676.7,0.7804]
[1739209470463,3.73545,2677.1,2676.7,0.7804]
[1739209470774,3.73517,2677.3,2676.7,0.7804]
[1739209471058,4.51922,2677.5,2676.8,6.59395014]
[1739209471259,3.0,2677.5,2677.2,0.7804]
[1739209471623,3.73455,2677.7,2677.2,0.7804]
[1739209471821,3.73441,2677.8,2677.2,0.7804]
[1739209472123,3.73431,2677.9,2677.4,2.85826014]
[1739209472331,3.73358,2678.4,2677.9,3.73414]
[1739209472582,3.73358,2678.4,2678.1,3.63866014]
[1739209473131,3.7334,2678.6,2678.1,7.37264014]
[1739209473569,3.73385,2678.2,2678.1,0.7804]
[1739209473876,3.0,2678.6,2677.8,3.63866014]
[1739209474202,3.73441,2677.8,2677.6,8.75]
[1739209474383,3.73441,2677.8,2677.5,3.63866014]
[1739209474677,3.73417,2678.0,2677.5,3.63866014]
[1739209474831,3.734,2678.1,2677.5,7.37339014]
[1739209475479,3.734,2678.1,2677.6,3.73467]
[1739209475642,3.734,2678.1,2677.5,3.63866014]
[1739209475963,3.73437,2677.9,2677.5,3.63866014]
[1739209477671,3.73399,2678.1,2677.5,7.37346014]
[1739209478336,3.73385,2678.2,2677.8,2.85826014]
[1739209478535,3.73377,2678.3,2677.8,2.85826014]
[1739209478962,3.73351,2678.5,2677.9,0.7804]
[1739209479161,3.73339,2678.6,2678.1,2.85826014]
[1739209479393,6.73346,2678.5,2678.1,2.85826014]
[1739209480559,3.73299,2678.9,2678.1,2.85826014]
[1739209480763,3.73299,2678.9,2678.4,2.85826014]
[1739209481193,3.73299,2678.9,2678.4,6.59180014]
[1739209481397,3.73272,2679.1,2678.5,3.73334]
[1739209481567,3.73272,2679.1,2678.7,3.63866014]
[1739209481969,3.0,2679.0,2678.7,3.63866014]
[1739209482164,3.73272,2679.1,2678.7,3.63866014]
[1739209482685,2.86576014,2680.3,2679.0,2.85826014]
[1739209482686,3.73217,2679.5,2679.0,2.85826014]
[1739209482885,3.73182,2679.7,2679.1,0.7804]
[1739209483090,3.73191,2679.6,2679.1,0.7804]
[1739209484291,3.0,2679.6,2679.1,4.51286]
[1739209485086,3.73191,2679.6,2679.1,0.7804]
[1739209485299,3.73163,2679.8,2679.2,3.73245]
[1739209485300,3.0,2679.7,2679.2,3.73245]
[1739209485506,6.73186,2679.7,2679.1,0.7804]
[1739209485682,3.73191,2679.6,2679.1,4.51299]
[1739209486004,3.0,2679.7,2679.1,0.7804]
[1739209486301,4.51571,2680.0,2679.4,3.73215]
[1739209486501,3.73162,2679.8,2679.1,13.03484708]
[1739209486708,3.73162,2679.8,2679.2,3.73236]
[1739209486929,3.73162,2679.8,2679.2,0.825]
[1739209487131,3.73162,2679.8,2679.3,3.73226]
[1739209487302,3.73142,2680.0,2679.5,4.55695]
[1739209487630,3.73124,2680.1,2679.5,8.2889]
[1739209487804,3.73115,2680.2,2679.5,4.55695]
[1739209488009,3.73115,2680.2,2679.6,3.73185]
[1739209488409,7.46231,2680.2,2679.7,0.06312402]
[1739209488613,7.46233,2680.2,2679.7,0.06312402]
[1739209488809,3.73115,2680.2,2679.7,0.06312402]
[1739209489022,3.73115,2680.2,2679.7,3.79487402]
[1739209489197,3.73087,2680.4,2679.8,3.73155]
[1739209489554,7.46177,2680.4,2679.9,0.88788297]
[1739209489827,3.73054,2680.6,2680.0,7.46251]
[1739209490036,3.8273,2681.0,2680.1,0.07000064]
[1739209490356,3.73086,2680.4,2680.1,8.81250064]
[1739209490646,3.73106,2680.2,2680.1,0.06250064]
[1739209490801,7.55836,2680.2,2680.1,0.0602685]
[1739209490998,3.8273,2680.2,2679.2,0.825]
[1739209491314,3.73191,2679.6,2679.3,0.06121543]
[1739209491721,3.73191,2679.6,2679.2,0.825]
[1739209492032,3.73163,2679.8,2679.3,0.06131706]
[1739209492229,3.73207,2679.5,2679.2,0.825]
[1739209492431,3.73202,2679.6,2679.0,9.49433862]
[1739209492611,3.73202,2679.6,2679.1,3.73257]
[1739209492812,3.73202,2679.6,2679.2,0.06145995]
[1739209493217,3.73204,2679.5,2679.0,9.49433862]
[1739209493418,3.73259,2679.1,2679.0,8.75]
[1739209493618,3.0,2680.0,2679.0,8.75]
[1739209493619,3.73246,2679.2,2679.0,8.75]
[1739209493819,3.73259,2679.1,2679.0,8.75]
[1739209494437,7.46477,2679.3,2679.0,8.75]
[1739209494758,3.73233,2679.3,2679.0,8.75]
[1739209495262,3.73259,2679.1,2679.0,8.75]
[1739209496360,3.73184,2679.7,2678.5,7.52177708]
[1739209496361,3.73287,2678.9,2678.5,0.825]
[1739209496662,3.73313,2678.8,2678.5,0.825]
[1739209496857,3.73316,2678.7,2678.5,0.825]
[1739209497563,3.73303,2678.8,2678.5,0.825]
[1739209498348,3.73303,2678.8,2678.6,0.05885955]
[1739209498660,0.8273,2679.5,2678.6,0.05885955]
[1739209498661,3.73278,2679.0,2678.6,0.05885955]
[1739209498865,4.55939,2679.5,2678.6,0.09618871]
[1739209498866,7.46421,2679.5,2678.6,0.09618871]
[1739209499052,3.73178,2679.7,2679.1,4.55751]
[1739209499247,3.73178,2679.7,2679.2,0.05813591]
[1739209499465,3.73213,2679.5,2679.2,0.05813591]
[1739209500074,3.73185,2679.7,2679.2,0.05813591]
[1739209500378,3.73212,2679.5,2679.2,0.05813591]
[1739209500542,3.73231,2679.3,2679.2,0.05813591]
[1739209500743,7.51161,2679.3,2679.2,0.05813591]
[1739209500967,3.73315,2678.7,2678.6,8.75]
[1739209501176,3.73315,2678.7,2678.5,0.7769]
[1739209501373,3.73329,2678.6,2678.5,0.7769]
[1739209501674,3.73399,2678.1,2678.0,0.7769]
[1739209501880,0.7793,2678.8,2677.6,0.7769]
[1739209502180,3.7344,2677.9,2677.6,0.7769]
[1739209502345,3.73454,2677.7,2677.6,0.7769]
[1739209502683,3.73443,2677.8,2677.3,1.52077454]
[1739209502881,0.7793,2678.2,2677.3,1.52077454]
[1739209503181,3.73445,2677.8,2677.3,0.7769]
[1739209503480,3.73323,2678.7,2678.0,7.46808]
[1739209503665,3.73306,2678.8,2678.0,3.77141771]
[1739209503846,3.73316,2678.7,2678.1,3.7933283]
[1739209504042,3.73289,2678.9,2678.2,3.73382]
[1739209504247,3.73289,2678.9,2678.4,0.7769]
[1739209504481,3.0,2679.0,2678.5,0.05894566]
[1739209504688,7.46594,2678.9,2678.5,0.05894566]
[1739209504887,3.73329,2678.6,2678.5,0.05894566]
[1739209505201,6.73291,2678.9,2677.9,0.7769]
[1739209505366,0.7793,2679.1,2677.9,0.7769]
[1739209505680,3.73326,2678.7,2678.0,3.79358899]
[1739209505854,3.73309,2678.8,2678.2,3.73376]
[1739209506049,3.73309,2678.8,2678.3,0.05918696]
[1739209506247,3.73315,2678.7,2678.2,3.73376]
[1739209506461,3.73315,2678.7,2678.3,0.05918696]
[1739209506784,3.73315,2678.7,2678.2,3.73376]
[1739209506952,3.73315,2678.7,2678.4,0.0590663]
[1739209507154,3.73315,2678.7,2678.3,0.05918696]
[1739209507483,6.73238,2679.3,2678.6,3.73326]
[1739209507484,6.73237,2679.3,2678.6,3.73326]
[1739209507691,3.73183,2679.7,2679.1,3.73259]
[1739209507985,3.73183,2679.7,2678.7,0.03732902]
[1739209507986,7.51095,2679.8,2679.2,4.50923]
[1739209508287,3.73192,2679.6,2679.2,0.83500138]
[1739209508687,3.7793,2679.8,2679.2,0.05810138]
[1739209508688,3.73231,2679.3,2679.2,0.05810138]
[1739209508882,7.46446,2679.4,2678.9,0.7769]
[1739209509098,3.73218,2679.4,2679.2,0.05810138]
[1739209509283,3.73218,2679.4,2678.9,0.7769]
[1739209509482,3.7325,2679.2,2678.9,0.7769]
[1739209509792,3.73259,2679.1,2679.0,0.05834256]
[1739209510290,3.73276,2679.0,2678.6,9.5269]
[1739209510663,3.73291,2678.9,2678.6,9.5269]
[1739209511089,3.73329,2678.6,2678.5,0.284]
[1739209511459,3.7329,2678.9,2678.5,0.284]
[1739209511878,3.73259,2679.1,2678.5,0.284]
[1739209512079,3.73329,2678.6,2678.5,0.284]
[1739209512298,3.73329,2678.6,2678.2,0.7769]
[1739209512457,3.7336,2678.4,2678.2,0.7769]
[1739209512991,3.73329,2678.6,2678.2,0.7769]
[1739209513291,4.51243,2678.8,2678.2,0.7769]
[1739209513593,3.0,2679.5,2678.2,0.7769]
[1739209513594,3.7326,2679.1,2678.5,3.73331]
[1739209513769,3.7325,2679.2,2678.7,3.73315]
[1739209515055,3.73218,2679.4,2678.7,3.73315]
[1739209515257,3.73238,2679.3,2678.7,7.46616]
[1739209515456,3.73218,2679.4,2678.7,7.46616]
[1739209515457,3.73218,2679.4,2678.8,3.73295]
[1739209515883,3.73194,2679.6,2679.1,0.7555]
[1739209516080,3.73148,2679.9,2679.4,3.73213]
[1739209516300,3.73166,2679.8,2679.2,3.73245]
[1739209516478,3.73166,2679.8,2679.1,4.48798]
[1739209516479,3.73184,2679.7,2679.1,4.48798]
[1739209516800,3.73166,2679.8,2679.1,4.48798]
[1739209516801,3.73166,2679.8,2679.2,3.73231]
[1739209516972,3.73166,2679.8,2679.1,4.48798]
[1739209517172,3.73166,2679.8,2679.3,3.73231]
[1739209517383,3.73176,2679.7,2679.1,8.22045]
[1739209517789,3.73191,2679.6,2679.1,4.48797]
[1739209518595,3.73163,2679.8,2679.3,3.73231]
[1739209518962,3.73163,2679.8,2679.4,0.05767281]
[1739209519354,3.73184,2679.7,2679.4,0.05767281]
[1739209519561,3.73203,2679.5,2678.9,9.5055]
[1739209519797,3.73202,2679.6,2679.5,0.05755225]
[1739209520003,3.73254,2679.2,2678.9,9.5055]
[1739209520207,3.73237,2679.3,2678.9,0.7555]
[1739209520521,3.0,2679.6,2678.6,9.5055]
[1739209520660,3.7329,2678.9,2678.6,9.5055]
[1739209520861,0.8173,2679.5,2678.6,9.5055]
[1739209521167,3.73218,2679.4,2678.9,3.73279]
[1739209521356,7.46443,2679.4,2678.9,3.73279]
[1739209521759,3.73218,2679.4,2678.9,3.73279]
[1739209521966,3.73205,2679.5,2679.0,4.48814]
[1739209522686,3.73199,2679.6,2679.0,0.7555]
[1739209522886,4.54903,2679.8,2679.2,3.73244]
[1739209523196,4.54903,2679.8,2679.1,0.03732194]
[1739209523197,3.73176,2679.7,2679.1,12.48252]
[1739209524097,0.8173,2680.1,2679.2,0.7555]
[1739209524296,4.54853,2680.1,2679.6,3.7319]
[1739209524518,3.73123,2680.1,2679.5,3.73196]
[1739209524723,3.0,2680.1,2679.5,3.73196]
[1739209524879,3.73136,2680.0,2679.5,3.73196]
[1739209525085,3.73176,2679.7,2679.3,3.73226]
[1739209525406,3.7317,2679.8,2679.3,3.73226]
[1739209525803,3.0,2680.2,2679.1,8.75]
[1739209525804,3.73204,2679.5,2679.1,8.75]
[1739209526004,3.73233,2679.3,2679.1,8.75]
[1739209526315,3.73245,2679.2,2679.1,8.75]
[1739209526514,3.73245,2679.2,2678.7,0.7555]
[1739209526717,3.7326,2679.1,2678.7,0.7555]
[1739209527191,3.73217,2679.4,2678.5,0.7555]
[1739209527392,3.7333,2678.6,2678.2,0.7555]
[1739209527717,3.73339,2678.6,2678.2,0.7555]
[1739209528513,3.73305,2678.8,2678.2,4.48928]
[1739209528909,3.73305,2678.8,2678.2,4.48926]
[1739209529110,3.73305,2678.8,2678.2,8.22303]
[1739209529398,3.73305,2678.8,2678.2,4.48926]
[1739209529596,7.46619,2678.8,2678.2,4.48926]
[1739209529928,3.73305,2678.8,2678.2,4.48926]
[1739209530340,3.73327,2678.7,2678.2,4.48926]
[1739209530502,3.73327,2678.7,2678.2,0.7555]
[1739209531029,3.73346,2678.5,2678.2,0.7555]
[1739209531241,3.7336,2678.4,2678.2,0.7555]
[1739209531436,3.73346,2678.5,2678.2,0.7555]
[1739209531608,3.73357,2678.4,2678.2,0.7555]
[1739209531808,3.73383,2678.3,2677.9,9.5495]
[1739209532411,3.73383,2678.3,2677.9,9.542]
[1739209532612,3.73412,2678.0,2677.8,5.39]
[1739209532838,0.7942,2678.4,2677.6,0.76149188]
[1739209532839,3.73426,2677.9,2677.6,0.76149188]
[1739209533141,3.73394,2678.2,2677.6,0.76149188]
[1739209533346,0.7942,2679.1,2678.3,0.792]
[1739209533643,4.52648,2679.4,2678.9,3.73286]
[1739209533812,3.7319,2679.6,2679.0,0.792]
[1739209534016,3.7319,2679.6,2679.0,0.84840199]
[1739209534526,3.7319,2679.6,2679.0,4.58100199]
[1739209534701,4.526,2679.7,2679.0,4.58100199]
[1739209534900,4.526,2679.7,2679.2,3.73242]
[1739209535242,3.73162,2679.8,2679.3,3.78832023]
[1739209535402,3.73162,2679.8,2679.3,3.78835023]
[1739209535732,4.50881,2680.0,2679.3,3.78822023]
[1739209536339,4.50881,2680.0,2679.4,3.73213]
[1739209536543,4.50881,2680.0,2679.4,0.05562943]
[1739209537225,0.7774,2680.0,2679.7,3.73164]
[1739209537423,3.73092,2680.3,2679.7,3.73164]
[1739209537741,4.50792,2680.6,2680.0,3.73127]
[1739209537917,0.7774,2680.6,2680.1,3.73108]
[1739209538128,3.72976,2681.2,2680.5,3.73051]
[1739209538352,3.73009,2680.9,2680.3,3.73081]
[1739209538507,3.73009,2680.9,2680.2,3.78545823]
[1739209538866,3.73009,2680.9,2680.1,3.7311]
[1739209539007,3.73009,2680.9,2680.3,3.78526774]
[1739209539388,3.73009,2680.9,2680.4,0.05424727]
[1739209539561,3.73035,2680.8,2680.4,0.05424727]
[1739209539712,3.73039,2680.7,2680.1,3.7311]
[1739209539910,3.73069,2680.5,2680.0,0.8329]
[1739209540116,3.73069,2680.5,2680.2,0.05448823]
[1739209540321,3.73069,2680.5,2680.0,0.8329]
[1739209540527,3.73069,2680.5,2680.3,0.05420067]
[1739209540742,4.50781,2680.7,2680.0,0.8329]
[1739209541044,3.73013,2680.9,2680.4,0.05408019]
[1739209541244,3.73013,2680.9,2680.2,0.8329]
[1739209541408,3.73013,2680.9,2680.5,0.05395973]
[1739209541608,3.0,2681.2,2680.2,0.8329]
[1739209541816,3.73092,2680.3,2680.2,0.8329]
[1739209542035,3.73047,2680.7,2680.2,0.8329]
[1739209542210,3.73052,2680.6,2680.2,0.8329]
[1739209542921,3.73101,2680.3,2679.9,0.8329]
[1739209543314,3.73118,2680.2,2679.9,0.8329]
[1739209543534,3.73101,2680.3,2679.9,0.8329]
[1739209543707,3.73109,2680.2,2679.9,0.8329]
[1739209543907,3.73134,2680.0,2679.7,8.75]
[1739209544218,3.73162,2679.8,2679.7,8.75]
[1739209545014,3.73223,2679.4,2679.2,8.75]
[1739209545210,3.73223,2679.4,2679.0,0.8329]
[1739209546510,3.73273,2679.0,2678.9,8.75]
[1739209546710,3.73273,2679.0,2678.4,5.31012266]
[1739209546966,3.73273,2679.0,2678.5,3.73337]
[1739209547272,0.7769,2679.2,2678.4,0.8272]
[1739209547434,3.73324,2678.7,2678.4,0.8272]
[1739209547763,4.50941,2679.2,2678.3,8.75]
[1739209547764,3.0,2679.0,2678.3,8.75]
[1739209547968,3.733,2678.9,2678.3,8.75]
[1739209548169,3.73326,2678.7,2678.3,8.75]
[1739209548369,3.0,2678.8,2678.4,0.05655039]